fUST/lending_fUST_20250609
["ID","MTS","AMOUNT","RATE_DAILY","PERIOD"]
[365023393,1749409835217,-452.77394375,0.00020038,2]
[365023394,1749409835405,-440.0,0.00020038,2]
[365023395,1749409835419,-440.0,0.00020038,2]
[365023396,1749409835429,-335.95932143,0.00020038,2]
[365023397,1749409835439,-197.54617617,0.00020038,2]
[365023398,1749409835449,-440.0,0.00020038,2]
[365023399,1749409835459,-312.32633216,0.00020038,2]
[365023400,1749409835469,-440.0,0.00020038,2]
[365023401,1749409835479,-452.46780618,0.00020038,2]
[365023402,1749409835489,-440.0,0.00020038,2]
[365023403,1749409835499,-440.0,0.00020038,2]
[365023404,1749409835509,-440.0,0.00020038,2]
[365023405,1749409835519,-440.0,0.00020038,2]
[365023406,1749409835529,-440.0,0.00020038,2]
[365023407,1749409835539,-440.0,0.00020038,2]
[365023408,1749409835549,-272.2040379,0.00020038,2]
[365023409,1749409835558,-400.0,0.00020038,2]
[365023410,1749409835568,-440.0,0.00020038,2]
[365023411,1749409835578,-500.0,0.00020038,2]
[365023412,1749409835588,-440.0,0.00020038,2]
[365023413,1749409835597,-440.0,0.00020038,2]
[365023414,1749409835607,-440.0,0.00020038,2]
[365023415,1749409835617,-440.0,0.00020038,2]
[365023416,1749409835627,-440.0,0.00020038,2]
[365023417,1749409835636,-455.75747863,0.00020038,2]
[365023418,1749409835646,-430.0,0.00020038,2]
[365023419,1749409835655,-370.0,0.00020038,2]
[365023420,1749409835665,-440.0,0.00020038,2]
[365023421,1749409835675,-440.0,0.00020038,2]
[365023422,1749409835685,-436.08697673,0.00020038,2]
[365023423,1749409835696,-440.0,0.00020038,2]
[365023424,1749409835707,-430.0,0.00020038,2]
[365023425,1749409835716,-430.0,0.00020038,2]
[365023426,1749409835727,-500.0,0.00020038,2]
[365023427,1749409835736,-430.0,0.00020038,2]
[365023428,1749409835746,-480.0,0.00020038,2]
[365023429,1749409835755,-152.63117165,0.00020038,2]
[365023430,1749409835768,-500.0,0.00020038,2]
[365023431,1749409835778,-440.0,0.00020038,2]
[365023432,1749409835787,-440.0,0.00020038,2]
[365023433,1749409835796,-200.98728634,0.00020038,2]
[365023434,1749409835807,-500.0,0.00020038,2]
[365023435,1749409835816,-430.0,0.00020038,2]
[365023436,1749409835827,-151.0,0.00020038,2]
[365023437,1749409835838,-440.0,0.00020038,2]
[365023438,1749409835847,-151.0,0.00020038,2]
[365023439,1749409835858,-430.0,0.00020038,2]
[365023440,1749409835868,-151.0,0.00020038,2]
[365023441,1749409835878,-360.83897167,0.00020038,2]
[365023442,1749409835888,-151.0,0.00020038,2]
[365023443,1749409835897,-522.02005557,0.00020038,2]
[365023444,1749409835907,-430.0,0.00020038,2]
[365023445,1749409835916,-440.0,0.00020038,2]
[365023446,1749409835926,-440.0,0.00020038,2]
[365023447,1749409835935,-440.0,0.00020038,2]
[365023448,1749409835945,-500.0,0.00020038,2]
[365023449,1749409835954,-440.0,0.00020038,2]
[365023450,1749409835965,-500.0,0.00020038,2]
[365023451,1749409835975,-440.0,0.00020038,2]
[365023452,1749409835984,-440.0,0.00020038,2]
[365023453,1749409835994,-440.0,0.00020038,2]
[365023454,1749409836003,-440.0,0.00020038,2]
[365023455,1749409836012,-225.8679098,0.00020038,2]
[365023456,1749409836022,-440.0,0.00020038,2]
[365023457,1749409836031,-430.0,0.00020038,2]
[365023458,1749409836041,-440.0,0.00020038,2]
[365023459,1749409836051,-430.0,0.00020038,2]
[365023460,1749409836060,-440.0,0.00020038,2]
[365023461,1749409836070,-289.33579986,0.00020038,2]
[365023462,1749409836079,-440.0,0.00020038,2]
[365023463,1749409836089,-400.0,0.00020038,2]
[365023464,1749409836099,-276.78067423,0.00020038,2]
[365023465,1749409836109,-440.0,0.00020038,2]
[365023466,1749409836118,-440.0,0.00020038,2]
[365023467,1749409836128,-304.03460454,0.00020038,2]
[365023468,1749409836137,-440.0,0.00020038,2]
[365023469,1749409836147,-430.0,0.00020038,2]
[365023470,1749409836156,-506.17,0.00020038,2]
[365023471,1749409836166,-440.0,0.00020038,2]
[365023472,1749409836175,-440.0,0.00020038,2]
[365023473,1749409836185,-440.0,0.00020038,2]
[365023474,1749409836194,-440.0,0.00020038,2]
[365023475,1749409836204,-430.0,0.00020038,2]
[365023476,1749409836214,-430.0,0.00020038,2]
[365023477,1749409836224,-440.0,0.00020038,2]
[365023478,1749409836233,-440.0,0.00020038,2]
[365023479,1749409836243,-430.0,0.00020038,2]
[365023480,1749409836253,-440.0,0.00020038,2]
[365023481,1749409836263,-437.1124755,0.00020038,2]
[365023482,1749409836273,-440.0,0.00020038,2]
[365023483,1749409836283,-440.0,0.00020038,2]
[365023484,1749409836292,-430.0,0.00020038,2]
[365023485,1749409836302,-403.35052902,0.00020038,2]
[365023486,1749409836313,-440.0,0.00020038,2]
[365023487,1749409836322,-440.0,0.00020038,2]
[365023488,1749409836332,-492.42747307,0.00020038,2]
[365023489,1749409836342,-440.0,0.00020038,2]
[365023490,1749409836352,-440.0,0.00020038,2]
[365023491,1749409836362,-501.77666421,0.00020038,2]
[365023492,1749409836372,-440.0,0.00020038,2]
[365023493,1749409836381,-440.0,0.00020038,2]
[365023494,1749409836390,-440.0,0.00020038,2]
[365023495,1749409836400,-430.0,0.00020038,2]
[365023496,1749409836410,-440.0,0.00020038,2]
[365023497,1749409836420,-432.1844074,0.00020038,2]
[365023498,1749409836430,-440.0,0.00020038,2]
[365023499,1749409836440,-430.0,0.00020038,2]
[365023500,1749409836449,-440.0,0.00020038,2]
[365023501,1749409836459,-440.0,0.00020038,2]
[365023502,1749409836470,-206.21705771,0.00020038,2]
[365023503,1749409836480,-430.0,0.00020038,2]
[365023504,1749409836490,-430.0,0.00020038,2]
[365023505,1749409836500,-500.0,0.00020038,2]
[365023506,1749409836509,-484.89476985,0.00020038,2]
[365023507,1749409836519,-440.0,0.00020038,2]
[365023508,1749409836528,-440.0,0.00020038,2]
[365023509,1749409836538,-500.0,0.00020039,2]
[365023510,1749409836547,-506.15363087,0.0002004,2]
[365023511,1749409836557,-378.99850081,0.0002004,2]
[365023512,1749409836567,-400.0,0.0002004,2]
[365023513,1749409836576,-524.37848364,0.0002004,2]
[365023514,1749409836586,-514.39836032,0.0002004,2]
[365023515,1749409836601,-500.0,0.0002004,2]
[365023516,1749409836611,-440.0,0.0002004,2]
[365023517,1749409836621,-430.0,0.0002004,2]
[365023518,1749409836630,-500.0,0.0002004,2]
[365023519,1749409836640,-440.0,0.0002004,2]
[365023520,1749409836650,-440.0,0.0002004,2]
[365023521,1749409836660,-430.0,0.0002004,2]
[365023522,1749409836671,-550.0769539,0.0002004,2]
[365023523,1749409836681,-440.0,0.0002004,2]
[365023524,1749409836692,-440.0,0.0002004,2]
[365023525,1749409836701,-440.0,0.0002004,2]
[365023526,1749409836711,-440.0,0.0002004,2]
[365023527,1749409836720,-440.0,0.0002004,2]
[365023528,1749409836730,-430.0,0.0002004,2]
[365023529,1749409836739,-562.10826671,0.0002004,2]
[365023530,1749409836749,-440.0,0.0002004,2]
[365023531,1749409836758,-362.35609535,0.0002004,2]
[365023532,1749409836774,-400.0,0.0002004,2]
[365023533,1749409836783,-430.0,0.0002004,2]
[365023534,1749409836792,-440.0,0.0002004,2]
[365023535,1749409836802,-440.0,0.0002004,2]
[365023536,1749409836813,-440.0,0.0002004,2]
[365023537,1749409836823,-430.0,0.0002004,2]
[365023538,1749409836832,-440.0,0.0002004,2]
[365023539,1749409836842,-430.0,0.0002004,2]
[365023540,1749409836852,-409.61511835,0.0002004,2]
[365023541,1749409836861,-440.0,0.0002004,2]
[365023542,1749409836871,-440.0,0.0002004,2]
[365023543,1749409836880,-440.0,0.0002004,2]
[365023544,1749409836890,-511.64951376,0.0002004,2]
[365023545,1749409836899,-440.0,0.0002004,2]
[365023546,1749409836909,-440.20274534,0.0002004,2]
[365023547,1749409836918,-440.0,0.0002004,2]
[365023548,1749409836928,-440.0,0.0002004,2]
[365023549,1749409836938,-440.0,0.0002004,2]
[365023550,1749409836947,-440.0,0.0002004,2]
[365023551,1749409836956,-430.0,0.0002004,2]
[365023552,1749409836965,-440.0,0.0002004,2]
[365023553,1749409836974,-440.0,0.0002004,2]
[365023554,1749409836983,-440.0,0.0002004,2]
[365023555,1749409836992,-440.0,0.0002004,2]
[365023556,1749409837002,-440.0,0.0002004,2]
[365023557,1749409837011,-440.0,0.0002004,2]
[365023558,1749409837020,-151.0,0.00020064,2]
[365023559,1749409837029,-151.0,0.00020064,2]
[365023560,1749409837039,-151.0,0.00020064,2]
[365023561,1749409837048,-500.0,0.00020064,2]
[365023562,1749409837057,-500.0,0.00020065,2]
[365023563,1749409837067,-500.0,0.00020065,2]
[365023564,1749409837076,-500.0,0.00020065,2]
[365023565,1749409837085,-500.0,0.00020065,2]
[365023566,1749409837094,-151.0,0.00020065,2]
[365023567,1749409837104,-500.0,0.00020065,2]
[365023568,1749409837113,-500.0,0.00020065,2]
[365023569,1749409837122,-500.28861401,0.00020073,2]
[365023570,1749409837143,-500.0,0.00020073,2]
[365023571,1749409837154,-500.0,0.00020073,2]
[365023572,1749409837164,-500.0,0.00020073,2]
[365023573,1749409837174,-427.00833411,0.00020073,2]
[365023574,1749409837184,-500.0,0.00020073,2]
[365023575,1749409837194,-500.0,0.00020073,2]
[365023576,1749409837203,-500.0,0.00020073,2]
[365023577,1749409837214,-490.0,0.00020073,2]
[365023578,1749409837225,-1416.27073192,0.00020083,2]
[365023579,1749409837235,-500.0,0.00020092,2]
[365023580,1749409837247,-500.0,0.00020093,2]
[365023581,1749409837257,-500.0,0.00020093,2]
[365023582,1749409837267,-500.0,0.00020093,2]
[365023583,1749409837278,-500.0,0.00020093,2]
[365023584,1749409837288,-205.91177511,0.00020093,2]
[365023585,1749409837298,-500.0,0.00020093,2]
[365023586,1749409837307,-500.0,0.00020093,2]
[365023587,1749409837317,-500.0,0.00020119,2]
[365023588,1749409837327,-252.45466841,0.0002012,2]
[365023589,1749409837336,-500.0,0.0002012,2]
[365023590,1749409837346,-500.0,0.0002012,2]
[365023591,1749409837356,-500.0,0.0002012,2]
[365023592,1749409837366,-500.0,0.0002012,2]
[365023593,1749409837375,-500.0,0.0002012,2]
[365023594,1749409837385,-182.864,0.00020146,2]
[365023595,1749409837395,-500.0,0.00020147,2]
[365023596,1749409837406,-500.0,0.00020148,2]
[365023597,1749409837416,-500.0,0.00020148,2]
[365023598,1749409837426,-500.0,0.00020148,2]
[365023599,1749409837436,-500.0,0.00020148,2]
[365023600,1749409837447,-500.0,0.00020148,2]
[365023601,1749409837457,-500.0,0.00020174,2]
[365023602,1749409837467,-500.0,0.00020175,2]
[365023603,1749409837478,-500.0,0.00020175,2]
[365023604,1749409837488,-500.0,0.00020175,2]
[365023605,1749409837498,-500.0,0.00020175,2]
[365023606,1749409837508,-354.088961,0.00020187,2]
[365023607,1749409837518,-500.0,0.00020201,2]
[365023608,1749409837528,-311.93136519,0.00020202,2]
[365023609,1749409837538,-500.0,0.00020202,2]
[365023610,1749409837548,-500.0,0.00020202,2]
[365023611,1749409837558,-500.0,0.00020202,2]
[365023612,1749409837568,-412.31268897,0.00020229,2]
[365023613,1749409837577,-500.0,0.0002023,2]
[365023614,1749409837587,-500.0,0.0002023,2]
[365023615,1749409837597,-842.5625,0.00020234,2]
[365023616,1749409837606,-500.0,0.00020257,2]
[365023617,1749409837615,-500.0,0.00020257,2]
[365023618,1749409837625,-500.0,0.00020285,2]
[365023619,1749409837635,-500.0,0.00020285,2]
[365023620,1749409837646,-440.0,0.0002031,2]
[365023621,1749409837656,-440.0,0.0002031,2]
[365023622,1749409837666,-556.58,0.0002031,2]
[365023623,1749409837676,-995.29,0.0002031,2]
[365023624,1749409837686,-1300.22,0.0002031,2]
[365023625,1749409837696,-1127.97,0.0002031,2]
[365023626,1749409837705,-440.0,0.0002031,2]
[365023627,1749409837716,-440.0,0.0002031,2]
[365023628,1749409837726,-440.0,0.0002031,2]
[365023629,1749409837736,-1717.66,0.0002031,2]
[365023630,1749409837750,-440.0,0.0002031,2]
[365023631,1749409837763,-990.62,0.0002031,2]
[365023632,1749409837774,-1359.79,0.0002031,2]
[365023633,1749409837783,-440.0,0.0002031,2]
[365023634,1749409837794,-440.0,0.0002031,2]
[365023635,1749409837806,-440.0,0.0002031,2]
[365023636,1749409837816,-440.0,0.0002031,2]
[365023637,1749409837826,-440.0,0.0002031,2]
[365023638,1749409837836,-440.0,0.0002031,2]
[365023640,1749409837845,-440.0,0.00020311,2]
[365023643,1749409837855,-440.0,0.00020311,2]
[365023645,1749409837865,-440.0,0.00020311,2]
[365023646,1749409837874,-440.0,0.00020311,2]
[365023647,1749409837884,-440.0,0.00020311,2]
[365023648,1749409837894,-440.0,0.00020311,2]
[365023649,1749409837904,-410.0,0.00020311,2]
[365023650,1749409837914,-440.0,0.00020311,2]
[365023651,1749409837924,-440.0,0.00020311,2]
[365023652,1749409837934,-440.0,0.00020311,2]
[365023653,1749409837944,-440.0,0.00020311,2]
[365023654,1749409837953,-440.0,0.00020311,2]
[365023655,1749409837963,-995.49,0.00020311,2]
[365023656,1749409837973,-440.0,0.00020311,2]
[365023657,1749409837983,-440.0,0.00020311,2]
[365023658,1749409837992,-1896.07,0.00020311,2]
[365023659,1749409838002,-440.0,0.00020311,2]
[365023660,1749409838011,-440.0,0.00020311,2]
[365023661,1749409838022,-440.0,0.00020311,2]
[365023662,1749409838033,-440.0,0.00020311,2]
[365023664,1749409838043,-440.0,0.00020311,2]
[365023665,1749409838055,-440.0,0.00020311,2]
[365023666,1749409838065,-440.0,0.00020311,2]
[365023667,1749409838074,-440.0,0.00020311,2]
[365023668,1749409838084,-440.0,0.00020311,2]
[365023670,1749409838094,-241.20467988,0.00020311,2]
[365023671,1749409838103,-440.0,0.00020311,2]
[365023672,1749409838113,-440.0,0.00020311,2]
[365023673,1749409838122,-1222.95,0.00020311,2]
[365023674,1749409838131,-440.0,0.00020311,2]
[365023675,1749409838142,-440.0,0.00020311,2]
[365023677,1749409838152,-440.0,0.00020311,2]
[365023679,1749409838162,-440.0,0.00020311,2]
[365023681,1749409838172,-440.0,0.00020311,2]
[365023683,1749409838182,-440.0,0.00020311,2]
[365023685,1749409838191,-410.0,0.00020311,2]
[365023687,1749409838201,-440.0,0.00020311,2]
[365023688,1749409838211,-440.0,0.00020311,2]
[365023689,1749409838221,-440.0,0.00020311,2]
[365023690,1749409838232,-350.0,0.00020311,2]
[365023691,1749409838242,-500.0,0.00020312,2]
[365023692,1749409838254,-500.0,0.00020312,2]
[365023693,1749409838264,-440.0,0.00020312,2]
[365023694,1749409838275,-513.94875728,0.00020312,2]
[365023695,1749409838285,-420.0,0.00020312,2]
[365023696,1749409838295,-440.0,0.00020312,2]
[365023697,1749409838304,-440.0,0.00020312,2]
[365023698,1749409838315,-440.0,0.00020312,2]
[365023699,1749409838325,-440.0,0.00020312,2]
[365023700,1749409838335,-440.0,0.00020312,2]
[365023701,1749409838344,-440.0,0.00020312,2]
[365023702,1749409838355,-440.0,0.00020312,2]
[365023703,1749409838365,-440.0,0.00020312,2]
[365023704,1749409838378,-440.0,0.00020312,2]
[365023705,1749409838388,-267.90158132,0.00020312,2]
[365023707,1749409838399,-440.0,0.00020312,2]
[365023709,1749409838409,-440.0,0.00020312,2]
[365023710,1749409838419,-440.0,0.00020312,2]
[365023711,1749409838429,-440.0,0.00020312,2]
[365023712,1749409838439,-440.0,0.00020312,2]
[365023713,1749409838449,-440.0,0.00020312,2]
[365023714,1749409838459,-440.0,0.00020312,2]
[365023715,1749409838469,-440.0,0.00020312,2]
[365023717,1749409838480,-467.51912785,0.00020312,2]
[365023719,1749409838490,-440.0,0.00020312,2]
[365023720,1749409838689,-226.14646313,0.00020312,2]
[365023721,1749409838700,-440.0,0.00020312,2]
[365023722,1749409838712,-440.0,0.00020312,2]
[365023723,1749409838722,-400.0,0.00020312,2]
[365023724,1749409838732,-420.0,0.00020312,2]
[365023725,1749409838744,-440.0,0.00020312,2]
[365023726,1749409838755,-440.0,0.00020312,2]
[365023727,1749409838768,-440.0,0.00020312,2]
[365023728,1749409838778,-440.0,0.00020312,2]
[365023729,1749409838787,-440.0,0.00020312,2]
[365023730,1749409838797,-410.0,0.00020312,2]
[365023731,1749409838807,-410.0,0.00020312,2]
[365023732,1749409838817,-440.0,0.00020312,2]
[365023733,1749409838827,-440.0,0.00020312,2]
[365023734,1749409838837,-405.15,0.00020312,2]
[365023735,1749409838849,-410.0,0.00020312,2]
[365023736,1749409838860,-410.0,0.00020312,2]
[365023737,1749409838869,-420.94828896,0.00020312,2]
[365023738,1749409838879,-440.0,0.00020312,2]
[365023739,1749409838888,-478.61877372,0.00020312,2]
[365023740,1749409838899,-410.0,0.00020312,2]
[365023741,1749409838909,-440.0,0.00020312,2]
[365023742,1749409838918,-519.90961659,0.00020312,2]
[365023743,1749409838928,-440.0,0.00020312,2]
[365023744,1749409838940,-440.0,0.00020312,2]
[365023745,1749409838950,-484.06,0.00020312,2]
[365023746,1749409838961,-440.0,0.00020312,2]
[365023747,1749409838971,-440.0,0.00020312,2]
[365023748,1749409838981,-440.0,0.00020312,2]
[365023749,1749409838991,-440.0,0.00020312,2]
[365023750,1749409839000,-440.0,0.00020312,2]
[365023751,1749409839010,-420.0,0.00020312,2]
[365023752,1749409839020,-437.4470544,0.00020312,2]
[365023753,1749409839029,-420.0,0.00020312,2]
[365023754,1749409839039,-420.0,0.00020312,2]
[365023755,1749409839048,-420.0,0.00020312,2]
[365023756,1749409839058,-440.0,0.00020312,2]
[365023757,1749409839068,-440.0,0.00020312,2]
[365023758,1749409839077,-420.0,0.00020312,2]
[365023759,1749409839087,-420.0,0.00020312,2]
[365023760,1749409839096,-420.0,0.00020312,2]
[365023761,1749409839106,-440.0,0.00020312,2]
[365023762,1749409839115,-420.0,0.00020312,2]
[365023763,1749409839125,-440.0,0.00020312,2]
[365023764,1749409839135,-440.0,0.00020312,2]
[365023765,1749409839146,-440.0,0.00020312,2]
[365023766,1749409839155,-440.0,0.00020312,2]
[365023767,1749409839165,-410.0,0.00020312,2]
[365023768,1749409839174,-440.0,0.00020312,2]
[365023769,1749409839184,-440.0,0.00020312,2]
[365023770,1749409839194,-440.0,0.00020312,2]
[365023771,1749409839204,-390.0,0.00020312,2]
[365023772,1749409839213,-440.0,0.00020312,2]
[365023773,1749409839223,-440.0,0.00020312,2]
[365023774,1749409839233,-420.0,0.00020312,2]
[365023775,1749409839242,-209.58476933,0.00020312,2]
[365023776,1749409839251,-440.0,0.00020312,2]
[365023777,1749409839261,-168.15013796,0.00020312,2]
[365023778,1749409839271,-440.0,0.00020312,2]
[365023779,1749409839281,-440.0,0.00020312,2]
[365023780,1749409839290,-440.0,0.00020312,2]
[365023781,1749409839300,-440.0,0.00020312,2]
[365023782,1749409839310,-440.0,0.00020312,2]
[365023783,1749409839319,-440.0,0.00020312,2]
[365023784,1749409839329,-440.0,0.00020312,2]
[365023785,1749409839339,-440.0,0.00020312,2]
[365023786,1749409839349,-440.0,0.00020312,2]
[365023787,1749409839358,-383.39964934,0.00020312,2]
[365023788,1749409839368,-440.0,0.00020312,2]
[365023789,1749409839378,-440.0,0.00020312,2]
[365023790,1749409839388,-440.0,0.00020312,2]
[365023791,1749409839398,-440.0,0.00020312,2]
[365023792,1749409839407,-440.0,0.00020312,2]
[365023793,1749409839417,-440.0,0.00020312,2]
[365023794,1749409839427,-440.0,0.00020312,2]
[365023795,1749409839436,-440.0,0.00020312,2]
[365023796,1749409839445,-390.0,0.00020312,2]
[365023797,1749409839455,-332.1468531,0.00020312,2]
[365023798,1749409839465,-420.0,0.00020312,2]
[365023799,1749409839474,-390.0,0.00020312,2]
[365023800,1749409839484,-410.0,0.00020312,2]
[365023801,1749409839493,-420.0,0.00020312,2]
[365023802,1749409839503,-440.0,0.00020312,2]
[365023803,1749409839513,-440.0,0.00020312,2]
[365023804,1749409839522,-306.65482973,0.00020312,2]
[365023805,1749409839532,-612.31881565,0.00020313,2]
[365023806,1749409839542,-150.68133678,0.00020314,2]
[365023807,1749409839552,-440.0,0.00020314,2]
[365023808,1749409839562,-440.0,0.00020314,2]
[365023809,1749409839571,-356.78911354,0.00020314,2]
[365023810,1749409839581,-372.58283825,0.00020314,2]
[365023811,1749409839591,-440.0,0.00020314,2]
[365023812,1749409839600,-440.0,0.00020314,2]
[365023813,1749409839610,-420.0,0.00020314,2]
[365023814,1749409839619,-440.0,0.00020314,2]
[365023815,1749409839629,-390.0,0.00020314,2]
[365023816,1749409839639,-420.0,0.00020314,2]
[365023817,1749409839651,-420.0,0.00020314,2]
[365023818,1749409839661,-296.35003313,0.00020314,2]
[365023819,1749409839671,-420.0,0.00020314,2]
[365023820,1749409839683,-440.0,0.00020314,2]
[365023821,1749409839695,-420.0,0.00020314,2]
[365023822,1749409839706,-440.0,0.00020314,2]
[365023823,1749409839715,-440.0,0.00020314,2]
[365023824,1749409839727,-420.0,0.00020314,2]
[365023825,1749409839737,-390.0,0.00020314,2]
[365023826,1749409839746,-420.0,0.00020314,2]
[365023827,1749409839758,-420.0,0.00020314,2]
[365023828,1749409839772,-420.0,0.00020314,2]
[365023829,1749409839782,-258.77230431,0.00020314,2]
[365023830,1749409839791,-216.0858518,0.00020314,2]
[365023831,1749409839802,-403.83483562,0.00020314,2]
[365023832,1749409839812,-440.0,0.00020314,2]
[365023833,1749409839822,-500.0,0.00020339,2]
[365023835,1749409839831,-500.0,0.00020339,2]
[365023836,1749409839842,-500.0,0.00020367,2]
[365023837,1749409839851,-500.0,0.00020367,2]
[365023838,1749409839862,-162.0,0.00020367,2]
[365023839,1749409839871,-500.0,0.00020373,2]
[365023841,1749409839882,-500.0,0.00020373,2]
[365023842,1749409839891,-500.0,0.00020373,2]
[365023843,1749409839901,-500.0,0.00020373,2]
[365023844,1749409839911,-500.0,0.00020373,2]
[365023845,1749409839920,-500.0,0.00020373,2]
[365023846,1749409839930,-500.0,0.00020373,2]
[365023847,1749409839939,-500.0,0.00020373,2]
[365023848,1749409839951,-500.0,0.00020373,2]
[365023849,1749409839960,-500.0,0.00020373,2]
[365023850,1749409839970,-500.0,0.00020394,2]
[365023851,1749409839980,-500.0,0.00020422,2]
[365023852,1749409839989,-500.0,0.00020449,2]
[365023853,1749409839999,-504.21707405,0.00020465,2]
[365023854,1749409840009,-500.0,0.00020476,2]
[365023855,1749409840018,-531.27793115,0.00020504,2]
[365023856,1749409840028,-229.14005639,0.00020515,2]
[365023857,1749409840037,-440.0,0.00020584,2]
[365023858,1749409840047,-440.0,0.00020584,2]
[365023859,1749409840056,-995.29,0.00020584,2]
[365023860,1749409840066,-1300.22,0.00020584,2]
[365023861,1749409840076,-1127.97,0.00020584,2]
[365023862,1749409840085,-440.0,0.00020584,2]
[365023863,1749409840095,-440.0,0.00020584,2]
[365023864,1749409840104,-440.0,0.00020584,2]
[365023865,1749409840114,-1717.66,0.00020584,2]
[365023866,1749409840124,-440.0,0.00020584,2]
[365023867,1749409840133,-990.62,0.00020584,2]
[365023868,1749409840143,-1359.79,0.00020584,2]
[365023869,1749409840152,-247.06,0.00020584,2]
[365023870,1749409840162,-440.0,0.00020584,2]
[365023871,1749409840172,-440.0,0.00020584,2]
[365023872,1749409840181,-440.0,0.00020584,2]
[365023873,1749409840191,-440.0,0.00020584,2]
[365023874,1749409840200,-440.0,0.00020584,2]
[365023875,1749409840211,-440.0,0.00020585,2]
[365023876,1749409840220,-440.0,0.00020585,2]
[365023877,1749409840231,-440.0,0.00020585,2]
[365023879,1749409840240,-440.0,0.00020585,2]
[365023880,1749409840249,-414.85338045,0.00020585,2]
[365023881,1749409840259,-410.0,0.00020585,2]
[365023882,1749409840268,-440.0,0.00020585,2]
[365023883,1749409840278,-440.0,0.00020585,2]
[365023884,1749409840287,-440.0,0.00020585,2]
[365023885,1749409840296,-440.0,0.00020585,2]
[365023886,1749409840306,-995.49,0.00020585,2]
[365023887,1749409840315,-440.0,0.00020585,2]
[365023888,1749409840325,-440.0,0.00020585,2]
[365023889,1749409840335,-1896.07,0.00020585,2]
[365023890,1749409840345,-440.0,0.00020585,2]
[365023891,1749409840354,-440.0,0.00020585,2]
[365023892,1749409840364,-440.0,0.00020585,2]
[365023893,1749409840374,-440.0,0.00020585,2]
[365023894,1749409840383,-440.0,0.00020585,2]
[365023895,1749409840393,-433.46,0.00020585,2]
[365023896,1749409840403,-440.0,0.00020585,2]
[365023897,1749409840412,-440.0,0.00020585,2]
[365023898,1749409840421,-440.0,0.00020585,2]
[365023899,1749409840431,-440.0,0.00020585,2]
[365023900,1749409840441,-440.0,0.00020585,2]
[365023901,1749409840450,-1222.95,0.00020585,2]
[365023902,1749409840460,-440.0,0.00020585,2]
[365023903,1749409840470,-400.0,0.00020585,2]
[365023904,1749409840481,-440.0,0.00020585,2]
[365023905,1749409840490,-440.0,0.00020585,2]
[365023906,1749409840500,-440.0,0.00020585,2]
[365023907,1749409840511,-440.0,0.00020585,2]
[365023908,1749409840521,-440.0,0.00020585,2]
[365023909,1749409840531,-440.0,0.00020585,2]
[365023910,1749409840541,-440.0,0.00020585,2]
[365023911,1749409840550,-160.0,0.00020585,2]